fUSD/lending_fUSD_20250507
["ID","MTS","AMOUNT","RATE_DAILY","PERIOD"]
[360240080,1746651040115,-469.9,0.00019999,2]
[360240081,1746651040125,-450.0,0.00019999,2]
[360240082,1746651040136,-554.35272544,0.00019999,2]
[360240083,1746651040146,-450.0,0.00019999,2]
[360240084,1746651040156,-327.37,0.00019999,2]
[360240085,1746651040166,-450.0,0.00019999,2]
[360240086,1746651040178,-450.0,0.00019999,2]
[360240087,1746651040189,-500.0,0.00019999,2]
[360240088,1746651040199,-410.90400135,0.00019999,2]
[360240089,1746651040209,-450.0,0.00019999,2]
[360240090,1746651040219,-450.0,0.00019999,2]
[360240091,1746651040230,-450.0,0.00019999,2]
[360240092,1746651040241,-450.0,0.00019999,2]
[360240093,1746651040253,-450.0,0.00019999,2]
[360240094,1746651040265,-450.0,0.00019999,2]
[360240095,1746651040274,-450.0,0.00019999,2]
[360240096,1746651040284,-450.0,0.00019999,2]
[360240097,1746651040294,-459.64622207,0.00019999,2]
[360240098,1746651040305,-185.64559951,0.00019999,2]
[360240099,1746651040315,-150.64096917,0.00019999,2]
[360240100,1746651040325,-354.16556816,0.00019999,2]
[360240101,1746651040336,-450.0,0.00019999,2]
[360240102,1746651040346,-450.0,0.00019999,2]
[360240103,1746651040356,-450.0,0.00019999,2]
[360240104,1746651040366,-478.14,0.00019999,2]
[360240105,1746651040381,-450.0,0.00019999,2]
[360240106,1746651040392,-500.0,0.00019999,2]
[360240107,1746651040402,-450.0,0.00019999,2]
[360240108,1746651040412,-450.0,0.00019999,2]
[360240109,1746651040423,-470.0,0.00019999,2]
[360240110,1746651040433,-470.0,0.00019999,2]
[360240111,1746651040443,-450.0,0.00019999,2]
[360240112,1746651040453,-450.0,0.00019999,2]
[360240113,1746651040463,-470.0,0.00019999,2]
[360240114,1746651040473,-500.0,0.00019999,2]
[360240115,1746651040483,-450.0,0.00019999,2]
[360240116,1746651040495,-161.14,0.00019999,2]
[360240117,1746651040505,-285.64,0.00019999,2]
[360240118,1746651040516,-450.0,0.00019999,2]
[360240119,1746651040527,-450.0,0.00019999,2]
[360240120,1746651040538,-450.0,0.00019999,2]
[360240121,1746651040548,-496.32,0.00019999,2]
[360240122,1746651040559,-313.43491415,0.00019999,2]
[360240123,1746651040568,-450.0,0.00019999,2]
[360240124,1746651040578,-450.0,0.00019999,2]
[360240125,1746651040588,-450.0,0.00019999,2]
[360240126,1746651040598,-450.0,0.00019999,2]
[360240127,1746651040608,-450.0,0.00019999,2]
[360240128,1746651040618,-450.0,0.00019999,2]
[360240129,1746651040631,-500.0,0.00019999,2]
[360240130,1746651040641,-450.0,0.00019999,2]
[360240131,1746651040651,-450.0,0.00019999,2]
[360240132,1746651040661,-450.0,0.00019999,2]
[360240133,1746651040676,-450.0,0.00019999,2]
[360240134,1746651040688,-450.0,0.00019999,2]
[360240135,1746651040698,-500.0,0.00019999,2]
[360240136,1746651040708,-450.0,0.00019999,2]
[360240137,1746651040719,-450.0,0.00019999,2]
[360240138,1746651040730,-450.0,0.00019999,2]
[360240139,1746651040741,-450.0,0.00019999,2]
[360240140,1746651040750,-500.0,0.00019999,2]
[360240141,1746651040761,-450.0,0.00019999,2]
[360240142,1746651040771,-450.0,0.00019999,2]
[360240143,1746651040781,-450.0,0.00019999,2]
[360240144,1746651040792,-450.0,0.00019999,2]
[360240145,1746651040806,-450.0,0.00019999,2]
[360240146,1746651040816,-450.0,0.00019999,2]
[360240147,1746651040826,-450.0,0.00019999,2]
[360240148,1746651040838,-450.0,0.00019999,2]
[360240149,1746651040848,-450.0,0.00019999,2]
[360240150,1746651040858,-560.59,0.00019999,2]
[360240151,1746651040868,-450.0,0.00019999,2]
[360240152,1746651040878,-373.53032778,0.00019999,2]
[360240153,1746651040888,-450.0,0.00019999,2]
[360240154,1746651040898,-450.0,0.00019999,2]
[360240155,1746651040913,-468.44883203,0.00019999,2]
[360240156,1746651040922,-450.0,0.00019999,2]
[360240157,1746651040933,-450.0,0.00019999,2]
[360240158,1746651040943,-450.0,0.00019999,2]
[360240159,1746651040954,-550.0,0.00019999,2]
[360240160,1746651040963,-450.0,0.00019999,2]
[360240161,1746651040973,-204.91228373,0.00019999,2]
[360240162,1746651040985,-450.0,0.00019999,2]
[360240163,1746651040995,-450.0,0.00019999,2]
[360240164,1746651041005,-450.0,0.00019999,2]
[360240165,1746651041014,-450.0,0.00019999,2]
[360240166,1746651041024,-450.0,0.00019999,2]
[360240167,1746651041034,-589.22490729,0.00019999,2]
[360240168,1746651041044,-450.0,0.00019999,2]
[360240169,1746651041054,-450.0,0.00019999,2]
[360240170,1746651041064,-450.0,0.00019999,2]
[360240171,1746651041074,-450.0,0.00019999,2]
[360240172,1746651041085,-450.0,0.00019999,2]
[360240173,1746651041095,-450.0,0.00019999,2]
[360240174,1746651041105,-500.0,0.00019999,2]
[360240175,1746651041115,-193.9645999,0.00019999,2]
[360240176,1746651041125,-521.75708986,0.00019999,2]
[360240177,1746651041135,-500.0,0.00019999,2]
[360240178,1746651041145,-356.63,0.00019999,2]
[360240179,1746651041155,-450.0,0.00019999,2]
[360240180,1746651041165,-450.0,0.00019999,2]
[360240181,1746651041176,-450.0,0.00019999,2]
[360240182,1746651041186,-450.0,0.00019999,2]
[360240183,1746651041196,-250.0,0.00019999,2]
[360240184,1746651041206,-450.0,0.00019999,2]
[360240185,1746651041215,-450.0,0.00019999,2]
[360240186,1746651041225,-450.0,0.00019999,2]
[360240187,1746651041235,-450.0,0.00019999,2]
[360240188,1746651041244,-1613.47,0.00019999,2]
[360240189,1746651041254,-1613.47,0.00019999,2]
[360240190,1746651041264,-1613.47,0.00019999,2]
[360240191,1746651041274,-1613.47,0.00019999,2]
[360240192,1746651041284,-1613.47,0.00019999,2]
[360240193,1746651041294,-1613.47,0.00019999,2]
[360240194,1746651041304,-1613.47,0.00019999,2]
[360240195,1746651041314,-1613.47,0.00019999,2]
[360240196,1746651041323,-1613.47,0.00019999,2]
[360240197,1746651041333,-1613.47,0.00019999,2]
[360240198,1746651041343,-1613.47,0.00019999,2]
[360240199,1746651041353,-1613.47,0.00019999,2]
[360240200,1746651041362,-1613.47,0.00019999,2]
[360240201,1746651041372,-1613.47,0.00019999,2]
[360240202,1746651041382,-1613.47,0.00019999,2]
[360240203,1746651041391,-1613.47,0.00019999,2]
[360240204,1746651041402,-1613.47,0.00019999,2]
[360240205,1746651041412,-1613.47,0.00019999,2]
[360240206,1746651041422,-1613.47,0.00019999,2]
[360240207,1746651041432,-1613.47,0.00019999,2]
[360240208,1746651041441,-1613.47,0.00019999,2]
[360240209,1746651041451,-1613.47,0.00019999,2]
[360240210,1746651041461,-1613.47,0.00019999,2]
[360240211,1746651041471,-1613.59999997,0.00019999,2]
[360240212,1746651041481,-450.0,0.00019999,2]
[360240213,1746651041491,-450.0,0.00019999,2]
[360240214,1746651041501,-450.0,0.00019999,2]
[360240215,1746651041510,-450.0,0.00019999,2]
[360240216,1746651041520,-450.0,0.00019999,2]
[360240217,1746651041530,-450.0,0.00019999,2]
[360240218,1746651041540,-450.0,0.00019999,2]
[360240219,1746651041550,-450.0,0.00019999,2]
[360240220,1746651041560,-450.0,0.00019999,2]
[360240221,1746651041571,-450.0,0.00019999,2]
[360240222,1746651041580,-507.15052678,0.00019999,2]
[360240223,1746651041590,-450.0,0.00019999,2]
[360240224,1746651041599,-450.0,0.00019999,2]
[360240225,1746651041610,-450.0,0.00019999,2]
[360240226,1746651041620,-450.0,0.00019999,2]
[360240227,1746651041636,-430.95,0.00019999,2]
[360240228,1746651041646,-450.0,0.00019999,2]
[360240229,1746651041655,-450.0,0.00019999,2]
[360240230,1746651041896,-450.0,0.00019999,2]
[360240231,1746651041909,-310.03,0.00019999,2]
[360240232,1746651041920,-456.5778841,0.00019999,2]
[360240233,1746651041929,-450.0,0.00019999,2]
[360240234,1746651041939,-450.0,0.00019999,2]
[360240235,1746651041948,-450.0,0.00019999,2]
[360240236,1746651041958,-450.0,0.00019999,2]
[360240237,1746651041967,-450.0,0.00019999,2]
[360240238,1746651041977,-450.0,0.00019999,2]
[360240239,1746651041989,-450.0,0.00019999,2]
[360240240,1746651042000,-450.0,0.00019999,2]
[360240241,1746651042011,-450.0,0.00019999,2]
[360240242,1746651042022,-416.71,0.00019999,2]
[360240243,1746651042033,-450.0,0.00019999,2]
[360240244,1746651042043,-504.45588881,0.00019999,2]
[360240245,1746651042053,-516.11,0.00019999,2]
[360240246,1746651042063,-450.0,0.00019999,2]
[360240247,1746651042073,-450.0,0.00019999,2]
[360240248,1746651042083,-450.0,0.00019999,2]
[360240249,1746651042092,-450.0,0.00019999,2]
[360240250,1746651042102,-450.0,0.00019999,2]
[360240251,1746651042111,-450.0,0.00019999,2]
[360240252,1746651042121,-450.0,0.00019999,2]
[360240253,1746651042130,-450.0,0.00019999,2]
[360240254,1746651042140,-450.0,0.00019999,2]
[360240255,1746651042151,-450.0,0.00019999,2]
[360240257,1746651042161,-450.0,0.00019999,2]
[360240258,1746651042171,-450.0,0.00019999,2]
[360240259,1746651042181,-450.0,0.00019999,2]
[360240260,1746651042192,-595.4028712,0.00019999,2]
[360240261,1746651042201,-450.0,0.00019999,2]
[360240262,1746651042211,-450.0,0.00019999,2]
[360240263,1746651042220,-450.0,0.00019999,2]
[360240264,1746651042230,-467.45,0.00019999,2]
[360240265,1746651042240,-467.45,0.00019999,2]
[360240266,1746651042249,-467.45,0.00019999,2]
[360240267,1746651042259,-467.45,0.00019999,2]
[360240268,1746651042270,-450.0,0.00019999,2]
[360240269,1746651042279,-467.45,0.00019999,2]
[360240270,1746651042290,-467.45,0.00019999,2]
[360240271,1746651042299,-467.45,0.00019999,2]
[360240272,1746651042309,-467.45,0.00019999,2]
[360240273,1746651042318,-467.45,0.00019999,2]
[360240275,1746651042328,-467.45,0.00019999,2]
[360240277,1746651042337,-467.45,0.00019999,2]
[360240279,1746651042353,-467.45,0.00019999,2]
[360240280,1746651042364,-79.05586419,0.00019999,2]
[360240281,1746651042385,-388.39413581,0.00019999,2]
[360240282,1746651042394,-467.45,0.00019999,2]
[360240283,1746651042404,-467.45,0.00019999,2]
[360240284,1746651042414,-467.45,0.00019999,2]
[360240285,1746651042423,-467.45,0.00019999,2]
[360240286,1746651042434,-467.45,0.00019999,2]
[360240287,1746651042443,-467.45,0.00019999,2]
[360240288,1746651042454,-467.45,0.00019999,2]
[360240289,1746651042464,-467.45,0.00019999,2]
[360240290,1746651042472,-467.45,0.00019999,2]
[360240291,1746651042482,-467.54,0.00019999,2]
[360240292,1746651042491,-450.0,0.00019999,2]
[360240293,1746651042501,-409.02,0.00019999,2]
[360240294,1746651042510,-450.0,0.00019999,2]
[360240295,1746651042519,-450.0,0.00019999,2]
[360240296,1746651042529,-450.0,0.00019999,2]
[360240297,1746651042539,-450.0,0.00019999,2]
[360240298,1746651042549,-500.0,0.00019999,2]
[360240299,1746651042559,-450.0,0.00019999,2]
[360240300,1746651042568,-500.0,0.00019999,2]
[360240301,1746651042578,-500.0,0.00019999,2]
[360240302,1746651042587,-500.0,0.00019999,2]
[360240303,1746651042596,-400.57228191,0.00019999,2]
[360240304,1746651042606,-500.0,0.00019999,2]
[360240305,1746651042615,-605.15053718,0.00019999,2]
[360240306,1746651042624,-500.0,0.00019999,2]
[360240307,1746651042634,-500.0,0.00019999,2]
[360240308,1746651042643,-500.0,0.00019999,2]
[360240309,1746651042655,-500.0,0.00019999,2]
[360240310,1746651042664,-500.0,0.00019999,2]
[360240311,1746651042674,-500.0,0.00019999,2]
[360240312,1746651042683,-500.0,0.00019999,2]
[360240313,1746651042693,-500.0,0.00019999,2]
[360240314,1746651042703,-500.0,0.00019999,2]
[360240315,1746651042713,-500.0,0.00019999,2]
[360240316,1746651042722,-150.0,0.00019999,2]
[360240317,1746651042732,-150.0,0.00019999,2]
[360240318,1746651042741,-150.0,0.00019999,2]
[360240319,1746651042751,-150.0,0.00019999,2]
[360240320,1746651042760,-150.0,0.00019999,2]
[360240321,1746651042769,-233.88281693,0.00019999,2]
[360240322,1746651042778,-300.0,0.00019999,2]
[360240323,1746651042788,-300.0,0.00019999,2]
[360240324,1746651042810,-300.0,0.00019999,2]
[360240325,1746651042822,-300.0,0.00019999,2]
[360240326,1746651042833,-150.0,0.00019999,2]
[360240327,1746651042843,-300.0,0.00019999,2]
[360240328,1746651042854,-150.0,0.00019999,2]
[360240329,1746651042864,-1674.58773971,0.0002,2]
[360240331,1746651042878,-1924.31150499,0.0002,2]
[360240334,1746651042891,-976.26951232,0.0002,2]
[360240336,1746651042904,-35934.66614642,0.0002,2]
[360240338,1746651042918,-208406.1001684,0.0002,2]
[360240341,1746651042931,-258697.16391136,0.0002,2]
[360240342,1746651042957,-19225.24767107,0.0002,2]
[360240343,1746651042983,-3319.6,0.0002,2]
[360240344,1746651042996,-334.2610851,0.0002,2]
[360240345,1746651043047,-268.61,0.00019998,2]
[360240346,1746651043063,-231.39,0.00019998,2]
[360240347,1746651043073,-450.0,0.00019999,2]
[360240348,1746651043084,-191669.72929825,0.0002,2]
[360240349,1746651043096,-738.05,0.0002,2]
[360240350,1746651043112,-14351.0,0.0002,2]
[360240351,1746651045589,-500.0,0.00019998,2]
[360240352,1746651045602,-450.0,0.00019999,2]
[360240353,1746651045612,-33040.21234996,0.0002,2]
[360240354,1746651199219,500.0,0.00030096,120]
[360240355,1746651384874,1600.0,0.00019153,2]
[360240356,1746651385529,1600.0,0.00026336,120]
[360240357,1746651385747,1600.0,0.0002873,120]
[360240358,1746651524236,500.0,0.00019998,120]
[360240359,1746651524489,500.0,0.00019999,120]
[360240360,1746651524751,500.0,0.00019999,120]
[360240361,1746651524999,500.0,0.00019999,120]
[360240362,1746651525254,500.0,0.00019999,120]
[360240363,1746651525518,500.0,0.00019999,120]
[360240364,1746651525975,500.0,0.00019999,120]
[360240365,1746651526255,500.0,0.00019999,120]
[360240366,1746651526682,500.0,0.00019999,120]
[360240367,1746651527015,500.0,0.00019999,120]
[360240368,1746651527266,190.34690287,0.00019999,120]
[360240369,1746651568966,2740.90114649,0.00030137,120]
[360240370,1746651602509,604.46,0.0001759,2]
[360240371,1746651646215,700.0,0.00030136,120]
[360240372,1746651646470,700.0,0.00030136,120]
[360240373,1746651646721,700.0,0.00030136,120]
[360240374,1746651646977,700.0,0.00030136,120]
[360240375,1746651647225,825.40468435,0.00030136,120]
[360240376,1746651771426,1333.0,0.00029041,120]
[360240377,1746651801251,500.0,0.00030096,120]
[360240378,1746651848937,150.0,0.0003,30]
[360240383,1746652231781,-1200.0,0.00019507,2]
[360240384,1746652231793,-300.0,0.00019507,2]
[360240385,1746652231804,-300.0,0.00019507,2]
[360240386,1746652231814,-1000.0,0.00019508,2]
[360240388,1746652231824,-1376.32,0.00019508,2]
[360240390,1746652231834,-302.33437438,0.00019508,2]
[360240393,1746652231855,-28340.67629403,0.00019508,2]
[360240399,1746652231910,-739.489561,0.00019508,2]
[360240402,1746652231927,-6000.0,0.00019508,2]
[360240404,1746652231939,-17538.26624426,0.00019508,2]
[360240406,1746652231949,-263.0,0.00019586,2]
[360240408,1746652231959,-500.0,0.00019753,2]
[360240410,1746652231968,-166.78,0.0001978,2]
[360240412,1746652231978,-263.0,0.00019788,2]
[360240414,1746652231988,-226.5036,0.00019798,2]
[360240416,1746652231998,-1617.7405,0.00019798,2]
[360240418,1746652232008,-604.46,0.00019854,2]
[360240420,1746652232018,-4993.7250378,0.00019864,2]
[360240423,1746652232030,-4993.7250378,0.00019868,2]
[360240425,1746652232040,-4993.7250378,0.00019872,2]
[360240426,1746652232050,-500.0,0.00019873,2]
[360240429,1746652232061,-500.0,0.00019873,2]
[360240431,1746652232070,-501.02155493,0.00019873,2]
[360240432,1746652232080,-527.4996018,0.00019873,2]
[360240435,1746652232089,-500.0,0.00019873,2]
[360240437,1746652232099,-500.0,0.00019873,2]
[360240438,1746652232109,-500.0,0.00019873,2]
[360240439,1746652232119,-500.0,0.00019873,2]
[360240440,1746652232129,-4993.7250378,0.00019876,2]
[360240441,1746652232139,-4993.7250378,0.0001988,2]
[360240442,1746652232148,-4993.7250378,0.00019884,2]
[360240443,1746652232157,-151.0,0.00019886,2]
[360240444,1746652232167,-1220.6,0.00019887,2]
[360240445,1746652232177,-9999.99,0.00019887,2]
[360240446,1746652232187,-150.99,0.00019887,2]
[360240447,1746652232197,-435.18,0.00019887,2]
[360240448,1746652232207,-6953.78,0.00019887,2]
[360240449,1746652232217,-178.85,0.00019887,2]
[360240450,1746652232227,-9999.99,0.00019887,2]
[360240451,1746652232242,-150.99,0.00019887,2]
[360240452,1746652232251,-4993.7250378,0.00019888,2]
[360240453,1746652232262,-644.27098685,0.00019888,2]
[360240454,1746652232271,-4993.7250378,0.00019892,2]
[360240455,1746652232283,-4993.7250378,0.00019896,2]
[360240456,1746652232292,-3037.41475833,0.00019898,2]
[360240458,1746652232301,-200.0,0.00019898,2]
[360240460,1746652232311,-2608.70979127,0.00019898,2]
[360240462,1746652232323,-1050.0,0.00019898,2]
[360240464,1746652232335,-1578.04109096,0.00019898,2]
[360240472,1746652237525,-3400.39992489,0.00019898,2]
[360240473,1746652237579,-2330.83740952,0.00019898,2]
[360240474,1746652237635,-778.84197591,0.00019898,2]
[360240475,1746652237647,-515.55170183,0.00019898,2]
[360240476,1746652237692,-3491.21810562,0.00019898,2]
[360240477,1746652237703,-3945.95,0.00019898,2]
[360240478,1746652237712,-3659.69,0.00019898,2]
[360240479,1746652237722,-3261.8,0.00019898,2]
[360240480,1746652237732,-8455.82,0.00019898,2]
[360240481,1746652237743,-999.99,0.00019898,2]
[360240482,1746652237753,-499.99,0.00019898,2]
[360240483,1746652237763,-200.0,0.00019898,2]
[360240484,1746652237773,-3037.41475825,0.00019898,2]
[360240485,1746652237785,-200.0,0.00019898,2]
[360240486,1746652237795,-3037.41475825,0.00019898,2]
[360240487,1746652237804,-3037.41475825,0.00019899,2]
[360240488,1746652237814,-3037.41475825,0.00019899,2]
[360240489,1746652237824,-11102.3302,0.00019899,2]
[360240490,1746652237834,-4643.6318,0.00019899,2]
[360240491,1746652237845,-11893.518,0.00019899,2]
[360240492,1746652237855,-5000.0,0.00019899,2]
[360240493,1746652237865,-3037.41475825,0.00019899,2]
[360240494,1746652237875,-3037.41475825,0.00019899,2]
[360240495,1746652237885,-3037.41475825,0.000199,2]
[360240496,1746652237895,-3037.41475825,0.000199,2]
[360240497,1746652237906,-151.87337544,0.000199,2]
[360240498,1746652237916,-2816.5886,0.000199,2]
[360240499,1746652237926,-1319.9148,0.000199,2]
[360240500,1746652237936,-4993.7250378,0.000199,2]
[360240501,1746652237946,-3037.41475825,0.000199,2]
[360240502,1746652237956,-4813.98,0.00019955,2]
[360240503,1746652237966,-4017.0,0.00019955,2]
[360240504,1746652237976,-5934.0,0.00019955,2]
[360240505,1746652237986,-304.38017114,0.00019964,2]
[360240507,1746652238004,-500.0,0.00019964,2]
[360240508,1746652238015,-891.66247724,0.00019964,2]
[360240509,1746652238025,-890.38152276,0.00019973,2]
[360240510,1746652238038,-815.72485704,0.00019973,2]
[360240514,1746652239695,-635.8936202,0.00019973,2]
[360240515,1746652239705,-500.0,0.00019973,2]
[360240516,1746652239715,-500.0,0.00019973,2]
[360240517,1746652239725,-500.0,0.00019973,2]
[360240518,1746652239735,-500.0,0.00019973,2]
[360240519,1746652239744,-500.0,0.00019973,2]
[360240520,1746652239754,-560.3493445,0.00019973,2]
[360240521,1746652239763,-500.0,0.00019973,2]
[360240522,1746652239773,-500.0,0.00019973,2]
[360240523,1746652239783,-500.0,0.00019973,2]
[360240524,1746652239792,-500.0,0.00019973,2]
[360240525,1746652239802,-500.0,0.00019973,2]
[360240526,1746652239812,-498.998,0.00019973,2]
[360240527,1746652239822,-500.0,0.00019973,2]
[360240528,1746652239832,-263.0,0.0001999,2]
[360240529,1746652239842,-170.44771505,0.00019997,2]
[360240530,1746652239852,-450.0,0.00019997,2]
[360240531,1746652239863,-450.0,0.00019997,2]
[360240532,1746652239872,-450.0,0.00019997,2]
[360240533,1746652239884,-178.77,0.00019997,2]
[360240534,1746652239894,-201.56,0.00019997,2]
[360240535,1746652239904,-450.0,0.00019997,2]
[360240536,1746652239914,-450.0,0.00019997,2]
[360240537,1746652239923,-500.0,0.00019997,2]
[360240538,1746652239933,-450.0,0.00019997,2]
[360240539,1746652239943,-538.81429643,0.00019997,2]
[360240540,1746652239954,-450.0,0.00019997,2]
[360240541,1746652239965,-450.0,0.00019997,2]
[360240542,1746652239976,-450.0,0.00019997,2]
[360240543,1746652239986,-450.0,0.00019997,2]
[360240544,1746652239996,-450.0,0.00019997,2]
[360240545,1746652240006,-450.0,0.00019997,2]
[360240546,1746652240015,-450.0,0.00019997,2]
[360240547,1746652240026,-519.8,0.00019997,2]
[360240548,1746652240037,-450.0,0.00019997,2]
[360240549,1746652240047,-450.0,0.00019997,2]
[360240550,1746652240059,-328.43,0.00019997,2]
[360240551,1746652240069,-450.0,0.00019997,2]
[360240552,1746652240079,-4222.88,0.00019997,2]
[360240553,1746652240090,-450.0,0.00019997,2]
[360240554,1746652240099,-443.23,0.00019997,2]
[360240555,1746652240109,-450.0,0.00019997,2]
[360240556,1746652240120,-445.81,0.00019997,2]
[360240557,1746652240130,-487.86,0.00019997,2]
[360240558,1746652240139,-450.0,0.00019997,2]
[360240559,1746652240149,-253.64,0.00019997,2]
[360240560,1746652240159,-290.67,0.00019997,2]
[360240561,1746652240168,-500.0,0.00019997,2]
[360240562,1746652240178,-450.0,0.00019997,2]
[360240563,1746652240188,-450.0,0.00019997,2]
[360240564,1746652240198,-343.653711,0.00019997,2]
[360240565,1746652240208,-500.0,0.00019997,2]
[360240566,1746652240218,-450.0,0.00019997,2]
[360240567,1746652240228,-457.08,0.00019997,2]
[360240568,1746652240244,-544.91,0.00019997,2]
[360240569,1746652240254,-16895.27868,0.00019997,2]
[360240570,1746652240263,-450.0,0.00019997,2]
[360240571,1746652240274,-1996.25613,0.00019997,2]
[360240572,1746652240283,-523.73,0.00019997,2]
[360240573,1746652240295,-450.0,0.00019997,2]
[360240574,1746652240305,-450.0,0.00019997,2]
[360240575,1746652240316,-450.0,0.00019998,2]
[360240576,1746652240325,-500.0,0.00019998,2]
[360240577,1746652240335,-290.27959333,0.00019998,2]
[360240578,1746652240344,-500.0,0.00019998,2]
[360240579,1746652240354,-500.0,0.00019998,2]
[360240580,1746652240364,-500.0,0.00019998,2]
[360240581,1746652240373,-450.0,0.00019998,2]
[360240582,1746652240383,-500.0,0.00019998,2]
[360240583,1746652240392,-394.77,0.00019998,2]
[360240584,1746652240402,-500.0,0.00019998,2]
[360240585,1746652240411,-450.0,0.00019998,2]
[360240586,1746652240421,-450.0,0.00019998,2]
[360240587,1746652240430,-450.0,0.00019998,2]
[360240588,1746652240439,-500.0,0.00019998,2]
[360240589,1746652240449,-180.34230286,0.00019998,2]
[360240590,1746652240458,-500.0,0.00019998,2]
[360240591,1746652240467,-185.73,0.00019998,2]
[360240592,1746652240476,-500.0,0.00019998,2]
[360240593,1746652240486,-396.07,0.00019998,2]
[360240594,1746652240495,-500.0,0.00019998,2]
[360240595,1746652240505,-171.63,0.00019998,2]
[360240596,1746652240514,-550.0,0.00019998,2]
[360240597,1746652240523,-936.85,0.00019998,2]
[360240598,1746652240533,-550.0,0.00019998,2]
[360240599,1746652240543,-500.0,0.00019998,2]
[360240600,1746652240552,-550.0,0.00019998,2]
[360240601,1746652240562,-550.0,0.00019998,2]
[360240602,1746652240572,-450.0,0.00019998,2]
[360240603,1746652240582,-471.68567967,0.00019998,2]
[360240604,1746652240592,-234.09366509,0.00019998,2]
[360240605,1746652240602,-4653.5,0.00019998,2]
[360240606,1746652240611,-550.0,0.00019998,2]
[360240607,1746652240621,-550.0,0.00019998,2]
[360240608,1746652240631,-453.81786962,0.00019998,2]
[360240609,1746652240640,-550.0,0.00019998,2]
[360240610,1746652240650,-500.0,0.00019998,2]
[360240611,1746652240659,-554.28609376,0.00019998,2]
[360240612,1746652240669,-557.8061407,0.00019998,2]
[360240613,1746652240679,-450.0,0.00019998,2]
[360240614,1746652240688,-550.0,0.00019998,2]
[360240615,1746652240698,-450.0,0.00019998,2]
[360240616,1746652240707,-500.0,0.00019998,2]
[360240617,1746652240716,-556.31213298,0.00019998,2]
[360240618,1746652240726,-564.23969743,0.00019998,2]
[360240619,1746652240735,-562.28569738,0.00019998,2]
[360240620,1746652240745,-450.0,0.00019998,2]
[360240621,1746652240754,-500.0,0.00019998,2]
[360240622,1746652240764,-556.83062747,0.00019998,2]
[360240623,1746652240774,-450.0,0.00019998,2]
[360240624,1746652240783,-544.25612897,0.00019998,2]
[360240625,1746652240794,-582.71926886,0.00019998,2]
[360240626,1746652240803,-500.0,0.00019998,2]
[360240627,1746652240812,-450.0,0.00019998,2]
[360240628,1746652240822,-564.47713529,0.00019998,2]
[360240629,1746652240831,-450.0,0.00019998,2]
[360240630,1746652240840,-550.0,0.00019998,2]
[360240631,1746652240850,-450.0,0.00019998,2]
[360240632,1746652240860,-500.0,0.00019998,2]
[360240633,1746652240869,-267.80403106,0.00019998,2]
[360240634,1746652240879,-450.0,0.00019998,2]
[360240635,1746652240888,-500.0,0.00019998,2]
[360240636,1746652240898,-500.0,0.00019998,2]
[360240637,1746652240907,-527.09300086,0.00019998,2]
[360240638,1746652240916,-238.77808801,0.00019998,2]